[Event "1000GM Schev-C January 2024"]
[Site "Sunnyvale"]
[Date "2024.01.20"]
[Round "1.1"]
[White "Pulijala, Akshaj"]
[Black "Maass Garza R, Gustavo"]
[Result "1-0"]
[ECO "D00"]
[WhiteElo "1597"]
[BlackElo "2025"]
[Annotator "NA RC"]
[PlyCount "39"]
[EventDate "2024.01.20"]
[EventType "schev"]
[EventCountry "USA"]
[SourceTitle "playchess.com"]
[Source "ChessBase"]
[SourceQuality "1"]
[TimeControl "5400+30"]

1. d4 {[%emt 0:00:04]} Nf6 {[%emt 0:06:58]} 2. Nc3 {[%emt 0:00:08]} d5 {[%emt 0:00:43]} 3. Bf4 {[%emt 0:00:22]} c6 {[%emt 0:00:56]} 4. e3 {[%emt 0:01:02]} Bf5 {[%emt 0:01:15]} 5. f3 {[%emt 0:01:29]} e6 {[%emt 0:01:26]} 6. g4 {[%emt 0:00:42]} Bg6 {[%emt 0:00:56]} 7. h4 {[%emt 0:01:17]} h5 {[%emt 0:00:02]} 8. g5 {[%emt 0:00:06]} Ng8 {[%emt 0:02:06]} 9. Bd3 {[%emt 0:00:52]} Ne7 {[%emt 0:01:45]} 10. Nge2 {[%emt 0:03:32]} Nd7 {[%emt 0:03:50]} 11. e4 {[%emt 0:08:05]} a6 {[%emt 0:05:21]} 12. Bg3 {[%emt 0:03:21]} Qb6 {[%emt 0:07:02]} 13. Qd2 {[%emt 0:05:28]} c5 {[%emt 0:04:08]} 14. exd5 {[%emt 0:09:54]} exd5 {[%emt 0:04:50]} 15. dxc5 {[%emt 0:03:36]} Nxc5 {[%emt 0:04:04]} 16. Bxg6 {[%emt 0:01:19]} Qxg6 {[%emt 0:02:48]} 17. O-O-O {[%emt 0:03:48]} Rc8 {[%emt 0:16:26]} 18. Nf4 {[%emt 0:03:15]} Qf5 {[%emt 0:04:07]} 19. Nfxd5 {[%emt 0:01:20]} Nxd5 {[%emt 0:01:25]} 20. Nxd5 {[%emt 0:01:03]} 1-0

[Event "1000GM Schev-C January 2024"]
[Site "Sunnyvale"]
[Date "2024.01.20"]
[Round "1.2"]
[White "Qi, Jenny"]
[Black "Palmero Martinez, Rachel"]
[Result "0-1"]
[ECO "C88"]
[WhiteElo "1605"]
[BlackElo "2018"]
[Annotator "RC"]
[PlyCount "80"]
[EventDate "2024.01.20"]
[EventType "schev"]
[EventCountry "USA"]
[SourceTitle "playchess.com"]
[Source "ChessBase"]
[SourceQuality "1"]
[TimeControl "5400+30"]

1. e4 {[%emt 0:00:03]} e5 {[%emt 0:02:09]} 2. Nf3 {[%emt 0:00:09]} Nc6 {[%emt 0:00:08]} 3. Bb5 {[%emt 0:00:11]} a6 {[%emt 0:00:07]} 4. Ba4 {[%emt 0:00:07]} Nf6 {[%emt 0:00:06]} 5. O-O {[%emt 0:00:13]} Be7 {[%emt 0:00:09]} 6. Re1 {[%emt 0:00:09]} b5 {[%emt 0:00:04]} 7. Bb3 {[%emt 0:00:10]} O-O {[%emt 0:00:09]} 8. d3 {[%emt 0:00:16]} Bb7 {[%emt 0:03:02]} 9. Nbd2 {[%emt 0:05:50]} d5 {[%emt 0:09:14]} 10. exd5 {[%emt 0:06:53]} Nxd5 {[%emt 0:00:20]} 11. Nxe5 {[%emt 0:04:12]} Nxe5 {[%emt 0:00:06]} 12. Rxe5 {[%emt 0:00:17]} Nf4 {[%emt 0:00:16]} 13. Nf3 {[%emt 0:16:32]} Ng6 {[%emt 0:04:12]} 14. Re1 {[%emt 0:01:54]} Bd6 {[%emt 0:01:35]} 15. Be3 {[%emt 0:07:11]} c5 {[%emt 0:00:14]} 16. a4 {[%emt 0:04:04]} Qf6 {[%emt 0:00:42]} 17. Ng5 {[%emt 0:18:18]} Rae8 {[%emt 0:06:26]} 18. Qg4 {[%emt 0:24:27]} h6 {[%emt 0:18:43]} 19. Ne4 {[%emt 0:02:07]} Bxe4 {[%emt 0:02:14]} 20. dxe4 {[%emt 0:00:32]} c4 {[%emt 0:00:07]} 21. Ba2 {[%emt 0:00:26]} Qxb2 {[%emt 0:00:12]} 22. axb5 {[%emt 0:02:50]} axb5 {[%emt 0:00:05]} 23. Qd1 {[%emt 0:02:25]} Rd8 {[%emt 0:05:10]} 24. Qb1 {[%emt 0:00:52]} Qe5 {[%emt 0:00:14]} 25. g3 {[%emt 0:00:27]} Rfe8 {[%emt 0:07:18]} 26. f4 {[%emt 0:02:16]} Qxe4 {[%emt 0:00:04]} 27. Qxb5 {[%emt 0:00:07]} Qf3 {[%emt 0:13:00]} 28. Bb6 {[%emt 0:00:48]} Rxe1+ {[%emt 0:05:29]} 29. Rxe1 {[%emt 0:00:06]} Bxf4 {[%emt 0:01:26]} 30. Qxc4 {[%emt 0:01:02]} Ne5 {[%emt 0:05:59]} 31. Qe4 {[%emt 0:00:29]} Rd2 {[%emt 0:01:17]} 32. Bxf7+ {[%emt 0:00:31]} Kxf7 {[%emt 0:04:25]} 33. Qf5+ {[%emt 0:00:28]} Kg8 {[%emt 0:00:02]} 34. Qe6+ {[%emt 0:00:34]} Kh7 {[%emt 0:00:37]} 35. Qf5+ {[%emt 0:00:14]} g6 {[%emt 0:00:36]} 36. Qe4 {[%emt 0:00:36]} Rg2+ {[%emt 0:05:02]} 37. Kh1 {[%emt 0:00:04]} Rxc2+ {[%emt 0:00:16]} 38. Qxf3 {[%emt 0:01:06]} Nxf3 {[%emt 0:00:04]} 39. Re7+ {[%emt 0:00:08]} Kg8 {[%emt 0:00:03]} 40. gxf4 {[%emt 0:00:29]} Rxh2# {[%emt 0:00:14]} 0-1

[Event "1000GM Schev-C January 2024"]
[Site "Sunnyvale"]
[Date "2024.01.20"]
[Round "1.3"]
[White "Yuan, Serena"]
[Black "Winslow, Elliott"]
[Result "0-1"]
[ECO "E68"]
[WhiteElo "1771"]
[BlackElo "1994"]
[Annotator "RC"]
[PlyCount "60"]
[EventDate "2024.01.20"]
[EventType "schev"]
[EventCountry "USA"]
[SourceTitle "playchess.com"]
[Source "ChessBase"]
[SourceQuality "1"]
[TimeControl "5400+30"]

1. d4 {[%emt 1:31:00]} Nf6 {[%emt 0:00:20]} 2. Nf3 {[%emt 0:00:00]} g6 {[%emt 0:00:21]} 3. g3 {[%emt 0:00:00]} Bg7 {[%emt 0:00:05]} 4. Bg2 {[%emt 0:00:00]} O-O {[%emt 0:00:10]} 5. O-O {[%emt 0:00:00]} d6 {[%emt 0:00:45]} 6. c4 {[%emt 0:00:00]} Nbd7 {[%emt 0:00:58]} 7. Nc3 {[%emt 0:00:00]} e5 {[%emt 0:00:07]} 8. e4 {[%emt 0:00:00]} a6 {[%emt 0:01:55]} 9. h3 {[%emt 0:00:00]} exd4 {[%emt 0:04:21]} 10. Nxd4 {[%emt 0:00:00]} c5 {[%emt 0:06:38]} 11. Nde2 {[%emt 0:00:00]} Ne5 {[%emt 0:07:12]} 12. b3 {[%emt 0:00:00]} Rb8 {[%emt 0:02:17]} 13. a4 {[%emt 0:00:00]} Nc6 {[%emt 0:03:43]} 14. Bf4 {[%emt 0:00:00]} Ne8 {[%emt 0:04:00]} 15. Qd2 {[%emt 0:00:00]} Be6 {[%emt 0:07:57]} 16. Rad1 {[%emt 0:00:00]} Qb6 {[%emt 0:08:03]} 17. Qc2 {[%emt 0:00:00]} Rd8 {[%emt 0:14:20]} 18. Rd2 {[%emt 0:00:00]} h6 {[%emt 0:00:57]} 19. Rfd1 {[%emt 0:00:00]} Nd4 {[%emt 0:01:07]} 20. Qd3 {[%emt 0:00:00]} Qxb3 {[%emt 0:04:09]} 21. Rb1 {[%emt 0:00:00]} Nxe2+ {[%emt 0:01:18]} 22. Nxe2 {[%emt 0:00:00]} Qxd3 {[%emt 0:00:12]} 23. Rxd3 {[%emt 0:00:00]} Bxc4 {[%emt 0:00:18]} 24. Rd2 {[%emt 0:00:00]} b5 {[%emt 0:00:22]} 25. axb5 {[%emt 0:00:00]} axb5 {[%emt 0:00:08]} 26. Bf1 {[%emt 0:00:00]} g5 {[%emt 0:02:10]} 27. Be3 {[%emt 0:00:00]} Ra8 {[%emt 0:00:38]} 28. f4 {[%emt 0:00:00]} Ra3 {[%emt 0:01:03]} 29. Bf2 {[%emt 0:00:00]} Bd3 {[%emt 0:07:18]} 30. Rbd1 {[%emt 0:04:35]} Bxe4 0-1

[Event "1000GM Schev-C January 2024"]
[Site "Sunnyvale"]
[Date "2024.01.20"]
[Round "1.4"]
[White "Palao, Adriana"]
[Black "Yang, Maxwell"]
[Result "0-1"]
[ECO "B92"]
[WhiteElo "1978"]
[BlackElo "1946"]
[Annotator "RC"]
[PlyCount "108"]
[EventDate "2024.01.20"]
[EventType "schev"]
[EventCountry "USA"]
[SourceTitle "playchess.com"]
[Source "ChessBase"]
[SourceQuality "1"]
[TimeControl "5400+30"]

1. e4 {[%emt 1:31:00]} c5 {[%emt 0:00:51]} 2. Nf3 {[%emt 0:00:00]} d6 {[%emt 0:00:07]} 3. d4 {[%emt 0:00:00]} cxd4 {[%emt 0:00:03]} 4. Nxd4 {[%emt 0:00:00]} Nf6 {[%emt 0:00:08]} 5. Nc3 {[%emt 0:00:00]} a6 {[%emt 0:00:04]} 6. Be2 {[%emt 0:00:00]} e5 {[%emt 0:00:06]} 7. Nb3 {[%emt 0:00:00]} Be7 {[%emt 0:00:03]} 8. a4 {[%emt 0:00:00]} O-O {[%emt 0:00:25]} 9. a5 {[%emt 0:00:00]} Be6 {[%emt 0:00:49]} 10. Be3 {[%emt 0:00:00]} Nc6 {[%emt 0:02:51]} 11. Bb6 {[%emt 0:00:00]} Qd7 {[%emt 0:01:10]} 12. Qd3 {[%emt 0:00:00]} Rac8 {[%emt 0:01:27]} 13. Ra4 {[%emt 0:00:00]} d5 {[%emt 0:16:55]} 14. Nc5 {[%emt 0:00:00]} Bxc5 {[%emt 0:04:33]} 15. Bxc5 {[%emt 0:00:00]} Rfd8 {[%emt 0:03:40]} 16. Bb6 {[%emt 0:00:00]} d4 {[%emt 0:03:21]} 17. Bxd8 {[%emt 0:00:00]} Nxd8 {[%emt 0:00:35]} 18. O-O {[%emt 0:00:00]} dxc3 {[%emt 0:00:47]} 19. Qxd7 {[%emt 0:00:00]} Bxd7 {[%emt 0:00:13]} 20. Rb4 {[%emt 0:00:00]} cxb2 {[%emt 0:00:16]} 21. Rxb2 {[%emt 0:00:00]} Nxe4 {[%emt 0:00:09]} 22. Re1 {[%emt 0:00:00]} Nc5 {[%emt 0:01:46]} 23. Bf3 {[%emt 0:00:00]} f6 {[%emt 0:00:34]} 24. Rd1 {[%emt 0:00:00]} Be6 {[%emt 0:00:47]} 25. Rb6 {[%emt 0:00:00]} Kf7 {[%emt 0:02:09]} 26. g4 {[%emt 0:00:00]} e4 {[%emt 0:02:07]} 27. Be2 {[%emt 0:00:00]} Na4 {[%emt 0:00:50]} 28. Rbd6 {[%emt 0:00:00]} Ke7 {[%emt 0:01:54]} 29. R6d2 {[%emt 0:00:00]} Nc3 {[%emt 0:00:27]} 30. Re1 {[%emt 0:00:00]} Nc6 {[%emt 0:00:18]} 31. f3 {[%emt 0:00:00]} Ne5 {[%emt 0:01:04]} 32. Kf2 {[%emt 0:01:00]} Nxe2 {[%emt 0:00:48]} 33. Rdxe2 {[%emt 0:00:23]} exf3 {[%emt 0:00:26]} 34. Rd2 {[%emt 0:00:33]} Rc3 {[%emt 0:00:11]} 35. h3 {[%emt 0:01:48]} h5 {[%emt 0:00:48]} 36. Rb1 {[%emt 0:01:33]} Bc8 {[%emt 0:03:54]} 37. gxh5 {[%emt 0:01:56]} Nc4 {[%emt 0:01:27]} 38. Rd5 {[%emt 0:04:12]} Rxc2+ {[%emt 0:00:14]} 39. Kg3 {[%emt 0:01:13]} Ne5 {[%emt 0:01:04]} 40. Rdd1 {[%emt 0:03:44]} Rg2+ {[%emt 0:00:49]} 41. Kf4 {[%emt 0:00:22]} Ra2 {[%emt 0:00:41]} 42. Rbc1 {[%emt 0:00:39]} Bxh3 {[%emt 0:00:28]} 43. Rc7+ {[%emt 0:00:13]} Bd7 {[%emt 0:00:08]} 44. Rxb7 {[%emt 0:01:15]} Rxa5 {[%emt 0:00:12]} 45. Kg3 {[%emt 0:01:50]} Ra4 {[%emt 0:00:19]} 46. Rh1 {[%emt 0:00:33]} Rg4+ {[%emt 0:00:20]} 47. Kf2 {[%emt 0:00:19]} Rg2+ {[%emt 0:00:16]} 48. Ke3 {[%emt 0:00:34]} Re2+ {[%emt 0:00:33]} 49. Kf4 {[%emt 0:00:20]} f2 {[%emt 0:00:22]} 50. Kg3 {[%emt 0:00:43]} Ke6 {[%emt 0:00:04]} 51. Rf1 {[%emt 0:00:54]} Nd3 {[%emt 0:00:49]} 52. Rb6+ {[%emt 0:00:45]} Ke5 {[%emt 0:00:12]} 53. Rb3 {[%emt 0:00:38]} Re3+ {[%emt 0:00:14]} 54. Kh2 {[%emt 0:00:31]} Rh3+ {[%emt 0:00:23]} 0-1

[Event "1000GM Schev-C January 2024"]
[Site "Sunnyvale"]
[Date "2024.01.20"]
[Round "1.5"]
[White "Vasquez Ramirez, Rocio"]
[Black "Zhuge, Katherine"]
[Result "1/2-1/2"]
[ECO "B12"]
[WhiteElo "1999"]
[BlackElo "1620"]
[Annotator "RC"]
[PlyCount "120"]
[EventDate "2024.01.20"]
[EventType "schev"]
[EventCountry "USA"]
[SourceTitle "playchess.com"]
[Source "ChessBase"]
[SourceQuality "1"]
[TimeControl "5400+30"]

1. e4 {[%emt 0:00:07]} c6 {[%emt 0:00:06]} 2. d4 {[%emt 0:00:19]} d5 {[%emt 0:00:10]} 3. e5 {[%emt 0:00:36]} Bf5 {[%emt 0:00:10]} 4. c3 {[%emt 0:02:01]} e6 {[%emt 0:01:06]} 5. Ne2 {[%emt 0:00:49]} Ne7 {[%emt 0:03:49]} 6. b3 {[%emt 0:01:43]} Nd7 {[%emt 0:04:15]} 7. Ba3 {[%emt 0:00:18]} c5 {[%emt 0:04:50]} 8. dxc5 {[%emt 0:07:22]} Nxe5 {[%emt 0:07:01]} 9. Nd4 {[%emt 0:00:06]} Bg6 {[%emt 0:05:56]} 10. Bb5+ {[%emt 0:03:43]} N7c6 {[%emt 0:09:47]} 11. f4 {[%emt 0:02:39]} a6 {[%emt 0:01:43]} 12. Nxc6 {[%emt 0:05:10]} Nxc6 {[%emt 0:01:34]} 13. Bd3 {[%emt 0:00:24]} Qh4+ {[%emt 0:04:58]} 14. g3 {[%emt 0:00:01]} Qh3 {[%emt 0:00:49]} 15. Bxg6 {[%emt 0:02:24]} hxg6 {[%emt 0:03:40]} 16. Nd2 {[%emt 0:04:56]} d4 {[%emt 0:14:56]} 17. c4 {[%emt 0:07:29]} Qg2 {[%emt 0:09:19]} 18. Qf3 {[%emt 0:00:15]} Qxf3 {[%emt 0:03:09]} 19. Nxf3 {[%emt 0:00:02]} a5 {[%emt 0:02:09]} 20. O-O-O {[%emt 0:04:43]} Rd8 {[%emt 0:01:27]} 21. Ne1 {[%emt 0:03:03]} Rh5 {[%emt 0:06:45]} 22. Nd3 {[%emt 0:01:03]} b6 {[%emt 0:01:12]} 23. h3 {[%emt 0:00:43]} bxc5 {[%emt 0:03:46]} 24. g4 {[%emt 0:00:38]} Rh4 {[%emt 0:00:48]} 25. Bxc5 {[%emt 0:03:22]} Bxc5 {[%emt 0:00:08]} 26. Nxc5 {[%emt 0:00:02]} Ke7 {[%emt 0:01:04]} 27. Nd3 {[%emt 0:02:50]} Rdh8 {[%emt 0:01:07]} 28. Nf2 {[%emt 0:00:42]} f5 {[%emt 0:02:09]} 29. Rhe1 {[%emt 0:08:23]} fxg4 {[%emt 0:02:07]} 30. hxg4 {[%emt 0:00:01]} Rf8 {[%emt 0:00:19]} 31. Re4 {[%emt 0:01:41]} Rf6 {[%emt 0:01:27]} 32. Rde1 {[%emt 0:00:22]} Kf7 {[%emt 0:00:18]} 33. f5 {[%emt 0:24:33]} gxf5 {[%emt 0:01:24]} 34. gxf5 {[%emt 0:00:35]} Rxe4 {[%emt 0:02:11]} 35. Nxe4 {[%emt 0:00:02]} Rh6 {[%emt 0:00:38]} 36. Ng5+ {[%emt 0:03:06]} Kf6 {[%emt 0:00:32]} 37. Nxe6 {[%emt 0:00:04]} Rh5 {[%emt 0:01:03]} 38. Rd1 {[%emt 0:11:30]} Rxf5 {[%emt 0:00:59]} 39. Nxd4 {[%emt 0:00:02]} Nxd4 {[%emt 0:00:20]} 40. Rxd4 {[%emt 0:00:00]} g5 {[%emt 0:00:25]} 41. a3 {[%emt 0:00:22]} Rf3 {[%emt 0:00:38]} 42. Kb2 {[%emt 0:00:14]} Rg3 {[%emt 0:00:22]} 43. b4 {[%emt 0:00:18]} axb4 {[%emt 0:00:24]} 44. axb4 {[%emt 0:00:02]} g4 {[%emt 0:00:07]} 45. b5 {[%emt 0:00:38]} Rg2+ {[%emt 0:00:25]} 46. Kc3 {[%emt 0:00:52]} g3 {[%emt 0:00:19]} 47. b6 {[%emt 0:01:21]} Rg1 {[%emt 0:00:22]} 48. Rg4 {[%emt 0:01:08]} Ke6 {[%emt 0:01:01]} 49. Rg6+ {[%emt 0:00:38]} Kf7 {[%emt 0:00:44]} 50. Rg4 {[%emt 0:00:40]} Ke6 {[%emt 0:00:03]} 51. c5 {[%emt 0:00:46]} Kd5 {[%emt 0:00:22]} 52. Rb4 {[%emt 0:01:08]} Rc1+ {[%emt 0:00:16]} 53. Kd2 {[%emt 0:00:32]} g2 {[%emt 0:00:23]} 54. Kxc1 {[%emt 0:00:02]} g1=Q+ {[%emt 0:00:07]} 55. Kb2 {[%emt 0:00:00]} Qxc5 {[%emt 0:01:35]} 56. Kb3 {[%emt 0:00:21]} Qe3+ {[%emt 0:00:51]} 57. Ka4 {[%emt 0:00:31]} Kc6 {[%emt 0:00:39]} 58. b7 {[%emt 0:00:15]} Qa7+ {[%emt 0:00:06]} 59. Kb3 {[%emt 0:00:04]} Qxb7 {[%emt 0:00:13]} 60. Rxb7 {[%emt 0:00:04]} Kxb7 {[%emt 0:00:34]} 1/2-1/2

[Event "1000GM Schev-C January 2024"]
[Site "Sunnyvale"]
[Date "2024.01.21"]
[Round "2.1"]
[White "Palmero Martinez, Rachel"]
[Black "Pulijala, Akshaj"]
[Result "0-1"]
[ECO "B33"]
[WhiteElo "2018"]
[BlackElo "1597"]
[Annotator "RC"]
[PlyCount "84"]
[EventDate "2024.01.20"]
[EventType "schev"]
[EventCountry "USA"]
[SourceTitle "playchess.com"]
[Source "ChessBase"]
[SourceQuality "1"]
[TimeControl "5400+30"]

1. e4 {[%emt 0:06:11]} c5 {[%emt 0:00:18]} 2. Nf3 {[%emt 0:00:07]} Nc6 {[%emt 0:00:07]} 3. d4 {[%emt 0:00:07]} cxd4 {[%emt 0:00:05]} 4. Nxd4 {[%emt 0:00:05]} Nf6 {[%emt 0:00:08]} 5. Nc3 {[%emt 0:00:09]} e5 {[%emt 0:00:14]} 6. Ndb5 {[%emt 0:00:11]} d6 {[%emt 0:00:17]} 7. Bg5 {[%emt 0:00:13]} a6 {[%emt 0:00:10]} 8. Na3 {[%emt 0:00:13]} b5 {[%emt 0:00:08]} 9. Nd5 {[%emt 0:00:09]} Be7 {[%emt 0:00:18]} 10. Bxf6 {[%emt 0:00:10]} Bxf6 {[%emt 0:00:05]} 11. c4 {[%emt 0:00:05]} b4 {[%emt 0:07:42]} 12. Nc2 {[%emt 0:00:08]} Rb8 {[%emt 0:01:44]} 13. b3 {[%emt 0:00:16]} Bg5 {[%emt 0:01:11]} 14. g3 {[%emt 0:00:09]} O-O {[%emt 0:01:58]} 15. Bg2 {[%emt 0:00:15]} f5 {[%emt 0:03:07]} 16. O-O {[%emt 0:01:32]} Kh8 {[%emt 0:03:00]} 17. Qd3 {[%emt 0:06:21]} f4 {[%emt 0:08:07]} 18. Rad1 {[%emt 0:01:27]} Be6 {[%emt 0:03:45]} 19. Qe2 {[%emt 0:11:08]} Qc8 {[%emt 0:05:35]} 20. Bf3 {[%emt 0:01:01]} a5 {[%emt 0:02:42]} 21. Rd3 {[%emt 0:06:13]} Ne7 {[%emt 0:03:20]} 22. h4 {[%emt 0:02:01]} Bf6 {[%emt 0:03:26]} 23. Nxf6 {[%emt 0:03:37]} Rxf6 {[%emt 0:00:16]} 24. Kh2 {[%emt 0:00:05]} Qc5 {[%emt 0:04:41]} 25. Rfd1 {[%emt 0:00:14]} Rbf8 {[%emt 0:02:22]} 26. Ne1 {[%emt 0:01:00]} Nc6 {[%emt 0:02:13]} 27. Nc2 {[%emt 0:02:38]} fxg3+ {[%emt 0:01:56]} 28. fxg3 {[%emt 0:00:02]} Bg4 {[%emt 0:09:42]} 29. Rf1 {[%emt 0:00:09]} Nd4 {[%emt 0:09:34]} 30. Nxd4 {[%emt 0:01:45]} exd4 {[%emt 0:00:11]} 31. Kg2 {[%emt 0:02:51]} Qe5 {[%emt 0:04:51]} 32. Kh2 {[%emt 0:10:14]} g5 {[%emt 0:05:02]} 33. hxg5 {[%emt 0:00:09]} Qxg5 {[%emt 0:00:13]} 34. Kg2 {[%emt 0:00:05]} h5 {[%emt 0:01:51]} 35. Kg1 {[%emt 0:18:30]} Bh3 {[%emt 0:03:58]} 36. Re1 {[%emt 0:08:02]} h4 {[%emt 0:04:54]} 37. g4 {[%emt 0:05:38]} Rf4 {[%emt 0:01:21]} 38. Kh2 {[%emt 0:07:09]} Bxg4 {[%emt 0:01:16]} 39. Rg1 {[%emt 0:00:33]} Rxf3 {[%emt 0:01:51]} 40. Kh1 {[%emt 0:06:00]} Qf4 {[%emt 0:01:07]} 41. e5 {[%emt 0:01:27]} Rh3+ {[%emt 0:01:13]} 42. Rxh3 {[%emt 0:00:07]} Bxe2 {[%emt 0:00:08]} 0-1

[Event "1000GM Schev-C January 2024"]
[Site "Sunnyvale"]
[Date "2024.01.21"]
[Round "2.2"]
[White "Winslow, Elliott"]
[Black "Qi, Jenny"]
[Result "1-0"]
[ECO "E30"]
[WhiteElo "1994"]
[BlackElo "1605"]
[Annotator "RC"]
[PlyCount "81"]
[EventDate "2024.01.20"]
[EventType "schev"]
[EventCountry "USA"]
[SourceTitle "playchess.com"]
[Source "ChessBase"]
[SourceQuality "1"]
[TimeControl "5400+30"]

1. d4 {[%emt 0:07:08]} Nf6 {[%emt 0:00:27]} 2. c4 {[%emt 0:00:35]} Nc6 {[%emt 0:00:07]} 3. Nf3 {[%emt 0:00:30]} e6 {[%emt 0:00:09]} 4. Bg5 {[%emt 0:03:18]} Bb4+ {[%emt 0:03:14]} 5. Nc3 {[%emt 0:01:17]} h6 {[%emt 0:02:25]} 6. Bh4 {[%emt 0:03:58]} g5 {[%emt 0:00:38]} 7. Bg3 {[%emt 0:00:02]} Ne4 {[%emt 0:01:49]} 8. Qc2 {[%emt 0:01:09]} d5 {[%emt 0:00:49]} 9. e3 {[%emt 0:04:43]} h5 {[%emt 0:02:18]} 10. h4 {[%emt 0:11:14]} Nxg3 {[%emt 0:05:04]} 11. fxg3 {[%emt 0:00:04]} g4 {[%emt 0:00:44]} 12. cxd5 {[%emt 0:08:23]} exd5 {[%emt 0:07:01]} 13. Ng1 {[%emt 0:06:09]} Bf8 {[%emt 0:04:03]} 14. Nge2 {[%emt 0:02:20]} Be6 {[%emt 0:21:27]} 15. Nf4 {[%emt 0:02:36]} Qd7 {[%emt 0:04:43]} 16. Bb5 {[%emt 0:02:04]} O-O-O {[%emt 0:03:50]} 17. Na4 {[%emt 0:01:43]} Bb4+ {[%emt 0:05:14]} 18. Kf2 {[%emt 0:00:43]} Bf5 {[%emt 0:03:54]} 19. Qb3 {[%emt 0:00:51]} Be7 {[%emt 0:12:55]} 20. Rac1 {[%emt 0:02:51]} Rh6 {[%emt 0:00:42]} 21. Nc5 {[%emt 0:01:04]} Bxc5 {[%emt 0:00:23]} 22. Rxc5 {[%emt 0:00:06]} Be4 {[%emt 0:02:08]} 23. Rhc1 {[%emt 0:04:36]} Qe8 {[%emt 0:05:19]} 24. Qa4 {[%emt 0:05:56]} Rdd6 {[%emt 0:02:05]} 25. Qxa7 {[%emt 0:00:38]} Qd8 {[%emt 0:03:43]} 26. Bxc6 {[%emt 0:01:21]} bxc6 {[%emt 0:00:14]} 27. Qa8+ {[%emt 0:00:30]} Kd7 {[%emt 0:00:10]} 28. Qxd8+ {[%emt 0:00:13]} Kxd8 {[%emt 0:00:07]} 29. b4 {[%emt 0:00:26]} Ke8 {[%emt 0:02:14]} 30. a3 {[%emt 0:03:10]} Kd8 {[%emt 0:01:12]} 31. Ke1 {[%emt 0:00:40]} Ke8 {[%emt 0:00:42]} 32. Kd2 {[%emt 0:00:50]} Kd8 {[%emt 0:00:58]} 33. a4 {[%emt 0:00:11]} Bf5 {[%emt 0:00:46]} 34. b5 {[%emt 0:06:10]} Bd7 {[%emt 0:00:57]} 35. bxc6 {[%emt 0:00:57]} Bxc6 {[%emt 0:00:15]} 36. a5 {[%emt 0:00:18]} Kc8 {[%emt 0:01:21]} 37. Nd3 {[%emt 0:00:36]} Kb7 {[%emt 0:01:54]} 38. Nb4 {[%emt 0:02:48]} Ba4 {[%emt 0:02:09]} 39. Rxc7+ {[%emt 0:00:20]} Kb8 {[%emt 0:00:05]} 40. Rc8+ {[%emt 0:00:10]} Kb7 {[%emt 0:00:02]} 41. R1c7# {[%emt 0:00:42]} 1-0

[Event "1000GM Schev-C January 2024"]
[Site "Sunnyvale"]
[Date "2024.01.21"]
[Round "2.3"]
[White "Palao, Adriana"]
[Black "Yuan, Serena"]
[Result "1-0"]
[ECO "B15"]
[WhiteElo "1978"]
[BlackElo "1771"]
[Annotator "RC"]
[PlyCount "111"]
[EventDate "2024.01.20"]
[EventType "schev"]
[EventCountry "USA"]
[SourceTitle "playchess.com"]
[Source "ChessBase"]
[SourceQuality "1"]
[TimeControl "5400+30"]

1. e4 {[%emt 0:01:02]} c6 {[%emt 0:00:04]} 2. Nc3 {[%emt 0:00:14]} d5 {[%emt 0:00:14]} 3. Nf3 {[%emt 0:00:03]} dxe4 {[%emt 0:00:10]} 4. Nxe4 {[%emt 0:00:08]} Nf6 {[%emt 0:00:15]} 5. Nxf6+ {[%emt 0:00:25]} exf6 {[%emt 0:00:05]} 6. d4 {[%emt 0:00:12]} Bd6 {[%emt 0:00:17]} 7. Be3 {[%emt 0:01:10]} O-O {[%emt 0:00:46]} 8. Be2 {[%emt 0:01:11]} Re8 {[%emt 0:01:18]} 9. c3 {[%emt 0:00:53]} Nd7 {[%emt 0:01:08]} 10. O-O {[%emt 0:01:47]} Qc7 {[%emt 0:04:20]} 11. Qd2 {[%emt 0:05:25]} Nf8 {[%emt 0:02:13]} 12. c4 {[%emt 0:04:08]} Bf5 {[%emt 0:04:15]} 13. d5 {[%emt 0:03:01]} cxd5 {[%emt 0:06:29]} 14. cxd5 {[%emt 0:00:51]} a6 {[%emt 0:03:39]} 15. Rac1 {[%emt 0:06:57]} Qe7 {[%emt 0:05:11]} 16. Nd4 {[%emt 0:02:00]} Be4 {[%emt 0:04:54]} 17. Bc4 {[%emt 0:28:26]} Qe5 {[%emt 0:13:42]} 18. f4 {[%emt 0:01:15]} Qh5 {[%emt 0:07:47]} 19. Ne2 {[%emt 0:03:33]} Qg6 {[%emt 0:11:44]} 20. Ng3 {[%emt 0:04:51]} b5 {[%emt 0:07:58]} 21. Be2 {[%emt 0:07:47]} f5 {[%emt 0:05:21]} 22. Rc6 {[%emt 0:03:12]} Qf6 {[%emt 0:04:20]} 23. Bf3 {[%emt 0:11:42]} Qd8 {[%emt 0:11:40]} 24. Bxe4 {[%emt 0:01:21]} fxe4 {[%emt 0:00:08]} 25. Nf5 {[%emt 0:00:25]} Bb8 {[%emt 0:01:26]} 26. Rfc1 {[%emt 0:03:27]} Qd7 {[%emt 0:02:31]} 27. Ng3 {[%emt 0:03:47]} Ba7 {[%emt 0:01:04]} 28. d6 {[%emt 0:02:07]} Bxe3+ {[%emt 0:00:38]} 29. Qxe3 {[%emt 0:00:01]} Qa7 {[%emt 0:00:18]} 30. Qxa7 {[%emt 0:00:46]} Rxa7 {[%emt 0:00:02]} 31. Re1 {[%emt 0:00:44]} Nd7 {[%emt 0:01:14]} 32. Rxe4 {[%emt 0:00:25]} Rxe4 {[%emt 0:00:40]} 33. Nxe4 {[%emt 0:00:02]} Ra8 {[%emt 0:00:35]} 34. Rc7 {[%emt 0:01:22]} Rd8 {[%emt 0:00:07]} 35. Nc5 {[%emt 0:00:34]} Nxc5 {[%emt 0:00:35]} 36. Rxc5 {[%emt 0:00:02]} g6 {[%emt 0:00:32]} 37. Rc6 {[%emt 0:01:19]} a5 {[%emt 0:00:03]} 38. Kf2 {[%emt 0:00:24]} Kg7 {[%emt 0:00:45]} 39. Ke3 {[%emt 0:00:01]} Kf6 {[%emt 0:00:27]} 40. Kd4 {[%emt 0:00:04]} Ke6 {[%emt 0:00:29]} 41. Kc5 {[%emt 0:00:08]} b4 {[%emt 0:00:33]} 42. Kb5 {[%emt 0:00:26]} Rxd6 {[%emt 0:00:52]} 43. Rxd6+ {[%emt 0:00:14]} Kxd6 {[%emt 0:00:01]} 44. Kxa5 {[%emt 0:00:01]} Kc5 {[%emt 0:00:01]} 45. b3 {[%emt 0:00:14]} f6 {[%emt 0:00:23]} 46. g4 {[%emt 0:00:41]} f5 {[%emt 0:01:28]} 47. gxf5 {[%emt 0:00:23]} gxf5 {[%emt 0:00:02]} 48. Ka4 {[%emt 0:00:11]} h5 {[%emt 0:01:05]} 49. h4 {[%emt 0:00:24]} Kd4 {[%emt 0:00:13]} 50. Kxb4 {[%emt 0:00:04]} Ke4 {[%emt 0:00:11]} 51. a4 {[%emt 0:00:04]} Kxf4 {[%emt 0:00:09]} 52. a5 {[%emt 0:00:02]} Ke3 {[%emt 0:00:29]} 53. a6 {[%emt 0:00:07]} f4 {[%emt 0:00:06]} 54. a7 {[%emt 0:00:04]} f3 {[%emt 0:00:05]} 55. a8=Q {[%emt 0:00:03]} f2 {[%emt 0:00:04]} 56. Qa6 {[%emt 0:00:50]} 1-0